bitfinex/quotes_SOLUSD_20220109
["timestamp","ask_amount","ask_price","bid_price","bid_amount"]
[1641728465530,15.65195518,140.7,140.58,94.7]
[1641728465731,116.56155518,140.7,140.58,94.7]
[1641728465932,1.94995521,140.68,140.58,94.7]
[1641728466129,1.94995521,140.68,140.59,10.6732]
[1641728466329,1.94995521,140.68,140.6,1.777]
[1641728466530,10.6732,140.66,140.6,1.777]
[1641728466732,27.21145072,140.65,140.6,1.777]
[1641728469535,27.21145072,140.65,140.6,12.4494]
[1641728473348,27.21145072,140.65,140.6,1.777]
[1641728473544,37.88525072,140.65,140.6,1.777]
[1641728476046,27.21145072,140.65,140.6,1.777]
[1641728477973,27.21145072,140.65,140.6,10.6723]
[1641728479081,1.94995521,140.67,140.61,2.026]
[1641728479282,1.94995521,140.67,140.61,12.6972]
[1641728479478,1.94995521,140.67,140.61,19.2202]
[1641728479879,25.88895521,140.68,140.61,19.2202]
[1641728480077,24.3851233,140.67,140.61,19.2202]
[1641728480879,25.88895521,140.68,140.61,19.2202]
[1641728481181,1.94995521,140.68,140.61,70.6822]
[1641728481581,1.94995521,140.68,140.62,0.07]
[1641728481782,24.02329833,140.68,140.63,1.776]
[1641728482183,24.02329833,140.68,140.64,0.25]
[1641728482782,24.02329833,140.68,140.65,1.776]
[1641728483581,3.03219997,140.67,140.65,1.776]
[1641728483781,3.03219997,140.67,140.64,0.25]
[1641728483984,3.03219997,140.67,140.61,2.026]
[1641728484184,3.03219997,140.67,140.62,10.6708]
[1641728484384,3.03219997,140.67,140.63,2.026]
[1641728484882,3.03219997,140.67,140.63,1.776]
[1641728486684,3.03219997,140.67,140.64,0.25]
[1641728487181,3.03219997,140.67,140.65,3.03219995]
[1641728489287,3.03219997,140.67,140.61,1.776]
[1641728489484,3.03219997,140.67,140.61,12.4477]
[1641728489883,1.94995521,140.66,140.61,12.4477]
[1641728490887,1.94995521,140.66,140.61,10.6717]
[1641728491087,1.94995521,140.67,140.61,10.6717]
[1641728491587,1.94995521,140.66,140.61,10.6717]
[1641728491790,1.94995521,140.66,140.62,1.776]
[1641728491987,1.94995521,140.66,140.61,10.6717]
[1641728492588,1.94995521,140.66,140.6,10.6723]
[1641728492789,1.94995521,140.65,140.61,1.776]
[1641728493689,1.94995521,140.65,140.6,0.25]
[1641728493889,1.94995521,140.65,140.59,12.6991]
[1641728494487,10.6733,140.66,140.59,12.6991]
[1641728494488,1.94995521,140.64,140.59,12.6991]
[1641728496690,1.94995521,140.65,140.59,12.6991]
[1641728498293,1.94995521,140.65,140.59,12.4491]
[1641728499899,1.94995521,140.65,140.6,10.9223]
[1641728501198,1.94995521,140.64,140.6,10.9223]
[1641728502700,1.94995521,140.65,140.6,10.9223]
[1641728502899,1.94995521,140.65,140.61,1.776]
[1641728503099,1.94995521,140.64,140.61,1.776]
[1641728503335,3.03219997,140.63,140.61,1.776]
[1641728503934,28.63118459,140.62,140.61,1.776]
[1641728505340,28.63118459,140.62,140.53,16.29749479]
[1641728505539,35.88918459,140.62,140.53,24.5984]
[1641728505938,37.8391398,140.62,140.53,24.5984]
[1641728506138,37.8391398,140.62,140.54,1.778]
[1641728506542,30.5811398,140.62,140.54,1.778]
[1641728506737,1.94995521,140.61,140.55,0.25]
[1641728506941,1.94995521,140.61,140.56,1.778]
[1641728507840,12.62695521,140.61,140.56,1.778]
[1641728513848,10.677,140.61,140.56,1.778]
[1641728514452,12.62695521,140.61,140.56,1.778]
[1641728515085,10.677,140.61,140.56,1.778]
[1641728516983,12.62695521,140.61,140.56,1.778]
[1641728518888,12.62695521,140.61,140.57,0.25]
[1641728519391,10.677,140.61,140.57,0.25]
[1641728519588,41.2574398,140.62,140.57,0.25]
[1641728519989,41.2574398,140.62,140.56,0.25]
[1641728520391,30.5811398,140.62,140.56,0.25]
[1641728520592,30.5811398,140.62,140.56,62.3875]
[1641728520791,28.63118459,140.62,140.56,62.3875]
[1641728520996,28.63118459,140.62,140.57,1.778]
[1641728521793,28.63118459,140.62,140.54,12.4545]
[1641728521993,30.5811398,140.62,140.55,0.25]
[1641728522194,30.5811398,140.62,140.56,1.778]
[1641728522593,1.94995521,140.61,140.56,1.778]
[1641728522896,10.678,140.6,140.56,1.778]
[1641728524095,1.94995521,140.61,140.56,1.778]
[1641728524096,12.62725521,140.61,140.56,1.778]
[1641728525999,18.296239,140.6,140.52,94.7]
[1641728526199,10.6785,140.6,140.52,105.3785]
[1641728526800,1.94995521,140.59,140.52,105.3785]
[1641728527200,12.62895521,140.59,140.52,94.7]
[1641728527402,1.94995521,140.58,140.52,94.7]
[1641728527603,1.94995521,140.58,140.51,12.4573]
[1641728529102,1.94995521,140.58,140.51,12.5273]
[1641728529502,1.94995521,140.58,140.51,63.9893]
[1641728529701,5.9776944,140.61,140.55,10.6735]
[1641728529901,1.94995521,140.61,140.56,2.028]
[1641728530305,1.94995521,140.61,140.56,1.778]
[1641728530504,28.63118459,140.62,140.56,1.778]
[1641728530505,30.5811398,140.62,140.56,1.778]
[1641728530701,30.5811398,140.62,140.58,10.6734]
[1641728531304,1.94995521,140.61,140.58,10.6734]
[1641728531502,3.03219997,140.6,140.58,10.6734]
[1641728531703,1.94995521,140.61,140.58,10.6734]
[1641728531904,1.94995521,140.61,140.59,2.028]
[1641728532105,1.94995521,140.61,140.6,46.672]
[1641728532505,4.02773919,140.64,140.61,50.0]
[1641728532707,4.02773919,140.67,140.62,3.53219995]
[1641728532905,4.02773919,140.67,140.62,9.16819995]
[1641728533108,4.02773919,140.67,140.62,19.83619995]
[1641728533340,4.02773919,140.67,140.63,1.777]
[1641728533540,29.00325384,140.68,140.63,1.777]
[1641728533738,29.00325384,140.68,140.64,0.25]
[1641728533939,29.00325384,140.68,140.65,1.776]
[1641728534138,29.00325384,140.68,140.66,3.53219995]
[1641728534342,29.00325384,140.68,140.67,1.776]
[1641728535341,4.02773919,140.71,140.67,1.776]
[1641728535541,4.02773919,140.71,140.67,12.4431]
[1641728536141,22.69412549,140.7,140.67,12.4431]
[1641728536343,22.69412549,140.7,140.67,10.6671]
[1641728536541,22.69412549,140.7,140.68,3.53219995]
[1641728536740,22.69412549,140.7,140.69,10.6656]
[1641728537741,25.22632546,140.7,140.69,10.6656]
[1641728538245,25.22632546,140.7,140.67,12.4426]
[1641728538643,228.5209,140.61,140.58,25.36742535]
[1641728538844,22.69412549,140.7,140.61,1.778]
[1641728539243,22.69412549,140.7,140.64,10.6683]
[1641728539444,22.69412549,140.7,140.65,1.776]
[1641728539848,22.69412549,140.7,140.62,35.5599]
[1641728539849,22.69412549,140.7,140.63,1.776]
[1641728540247,22.69412549,140.7,140.65,10.6679]
[1641728540446,22.69412549,140.7,140.63,37.3328]
[1641728540645,22.69412549,140.7,140.63,1.776]
[1641728541049,22.69412549,140.7,140.64,0.07]
[1641728541447,22.69412549,140.7,140.67,10.6668]
[1641728541649,22.69412549,140.7,140.68,3.53219995]
[1641728541846,31.53219997,140.69,140.63,1.776]
[1641728542248,2.53219997,140.69,140.63,1.776]
[1641728542450,2.53219997,140.69,140.66,10.6678]
[1641728543553,2.53219997,140.69,140.67,2.026]
[1641728543751,22.69412549,140.7,140.68,14.19779995]
[1641728543951,22.69412549,140.7,140.69,0.25]
[1641728544151,22.69412549,140.7,140.69,2.026]
[1641728544750,22.69412549,140.7,140.69,12.6916]
[1641728544950,22.69412549,140.7,140.69,12.4416]
[1641728545152,22.69412549,140.7,140.68,3.53219995]
[1641728545555,22.69412549,140.7,140.62,1.776]
[1641728545556,29.53219997,140.69,140.62,1.776]
[1641728545753,2.53219997,140.69,140.62,1.846]
[1641728546255,2.53219997,140.69,140.66,10.6678]
[1641728546455,22.69412549,140.7,140.67,3.53219995]
[1641728547852,22.69412549,140.7,140.68,10.6661]
[1641728547853,2.53219997,140.69,140.68,10.6661]
[1641728548052,22.69412549,140.7,140.67,3.53219995]
[1641728550355,4.02773919,140.73,140.68,0.25]
[1641728550655,24.0343,140.74,140.68,0.25]
[1641728551459,29.06487699,140.73,140.63,0.07]
[1641728551658,29.06487699,140.73,140.64,35.554]
[1641728551858,29.06487699,140.73,140.63,0.07]
[1641728552086,30.84087699,140.73,140.63,0.07]
[1641728552659,0.25,140.72,140.65,10.6685]
[1641728552861,0.25,140.72,140.66,1.776]
[1641728553063,1.776,140.71,140.63,1.776]
[1641728553265,1.776,140.71,140.62,1.776]
[1641728554464,4.27773919,140.72,140.62,1.776]
[1641728554870,10.6695,140.71,140.64,10.6693]
[1641728555073,4.27773919,140.72,140.65,1.776]
[1641728555272,34.86861618,140.73,140.64,10.6693]
[1641728555670,7.92702457,140.72,140.64,10.6693]
[1641728556170,18.59572457,140.72,140.64,10.6693]
[1641728556370,0.25,140.71,140.64,10.6693]
[1641728557372,10.6694,140.71,140.64,10.6693]
[1641728558573,10.6694,140.71,140.65,1.776]
[1641728558775,16.47313919,140.71,140.64,10.6693]
[1641728559901,7.92596086,140.7,140.64,10.6693]
[1641728560499,4.02773919,140.7,140.64,10.6693]
[1641728561702,14.69713919,140.71,140.64,10.6693]
[1641728561904,4.02773919,140.71,140.65,12.4445]
[1641728562103,3.94500667,140.7,140.65,12.4445]
[1641728562304,7.97274586,140.7,140.65,12.4445]
[1641728563005,4.02773919,140.71,140.65,12.4445]
[1641728563604,7.97611123,140.71,140.65,12.4445]
[1641728564203,4.02773919,140.7,140.65,12.4445]
[1641728565004,7.97611123,140.71,140.65,12.4445]
[1641728567912,4.02773919,140.7,140.65,12.4445]
[1641728571617,7.97611123,140.71,140.65,12.4445]
[1641728572617,4.02773919,140.7,140.65,12.4445]
[1641728572819,4.02773919,140.7,140.65,1.776]
[1641728573625,4.02773919,140.69,140.65,1.776]
[1641728573824,4.02773919,140.69,140.61,25.7712]
[1641728574025,4.02773919,140.7,140.65,10.6684]
[1641728574224,4.02773919,140.7,140.66,1.776]
[1641728574625,4.02773919,140.7,140.63,1.776]
[1641728575227,4.02773919,140.7,140.66,10.6677]
[1641728575626,4.02773919,140.7,140.63,1.776]
[1641728576127,4.02773919,140.7,140.64,10.6695]
[1641728576326,4.02773919,140.7,140.63,1.776]
[1641728576526,0.25,140.69,140.63,1.776]
[1641728576726,1.776,140.68,140.6,1.776]
[1641728576926,1.776,140.68,140.57,1.776]
[1641728577132,26.7343,140.68,140.55,25.3064]
[1641728577328,4.02773919,140.66,140.55,25.3064]
[1641728577528,30.35121202,140.64,140.55,1.776]
[1641728577931,30.35121202,140.64,140.54,1.778]
[1641728578852,41.02621202,140.64,140.55,10.6763]
[1641728579052,7.91549058,140.63,140.56,1.778]
[1641728579653,10.6761,140.62,140.56,1.778]
[1641728579852,108.27385121,140.64,140.56,12.4536]
[1641728580052,106.49585121,140.64,140.56,10.6756]
[1641728580255,34.37895121,140.64,140.57,1.778]
[1641728580455,30.35121202,140.64,140.57,1.778]
[1641728580654,30.35121202,140.64,140.56,1.778]
[1641728580853,30.35121202,140.64,140.6,10.6703]
[1641728587865,4.02773919,140.67,140.6,10.6703]
[1641728588863,4.02773919,140.67,140.64,10.6664]
[1641728589064,30.19603277,140.69,140.65,5.30819995]
[1641728589265,30.19603277,140.69,140.65,5.55819995]
[1641728589863,30.19603277,140.69,140.67,10.6669]
[1641728590464,30.19603277,140.69,140.68,0.5]
[1641728590666,30.19603277,140.69,140.68,3.53219995]
[1641728592667,32.72823274,140.69,140.66,10.6678]
[1641728594068,32.72823274,140.69,140.67,1.776]
[1641728594269,32.72823274,140.69,140.67,5.30819995]
[1641728594670,30.19603277,140.69,140.67,5.30819995]
[1641728595769,30.19603277,140.69,140.67,3.53219995]
[1641728603084,32.72823274,140.69,140.67,3.53219995]
[1641728603889,32.72823274,140.69,140.66,12.4438]
[1641728604185,32.72823274,140.69,140.64,1.776]
[1641728604385,41.5730586,140.69,140.61,1.776]
[1641728604605,41.5730586,140.69,140.59,1.776]
[1641728604606,8.02154718,140.68,140.59,1.776]
[1641728604806,13.27091,140.67,140.54,26.0413]
[1641728605011,1.776,140.67,140.58,10.6736]
[1641728605215,10.6738,140.65,140.59,1.776]
[1641728605414,10.6738,140.65,140.57,1.776]
[1641728606814,10.6738,140.65,140.59,10.6734]
[1641728607215,10.6738,140.65,140.6,1.776]
[1641728607719,10.6738,140.65,140.59,1.776]
[1641728607918,10.6738,140.65,140.57,10.6745]
[1641728608120,10.6738,140.65,140.58,1.776]
[1641728608351,10.675,140.63,140.57,10.6745]
[1641728608920,23.02117589,140.62,140.57,10.6745]
[1641728610122,23.02117589,140.62,140.58,1.778]
[1641728610522,23.02117589,140.62,140.58,10.674]
[1641728611022,23.02117589,140.62,140.59,1.778]
[1641728611224,23.02117589,140.62,140.6,3.53219995]
[1641728613123,10.6737,140.65,140.6,3.53219995]
[1641728614123,22.90147088,140.64,140.6,3.53219995]
[1641728616528,22.90147088,140.64,140.6,14.20449995]
[1641728616726,22.90147088,140.64,140.61,1.776]
[1641728616925,22.90147088,140.64,140.61,2.026]
[1641728617126,22.90147088,140.64,140.62,3.53219995]
[1641728617728,22.90147088,140.64,140.62,14.20329995]
[1641728618435,22.90147088,140.64,140.63,1.776]
[1641728618631,24.8234,140.67,140.63,12.4462]
[1641728618831,73.2656,140.68,140.63,12.4462]
[1641728619030,73.2656,140.68,140.63,10.6702]
[1641728619635,73.2656,140.68,140.6,1.776]
[1641728619636,28.85650299,140.67,140.62,10.6708]
[1641728620029,28.85650299,140.67,140.62,12.4468]
[1641728620231,28.85650299,140.67,140.62,10.6708]
[1641728620634,28.85650299,140.67,140.63,0.25]
[1641728620832,28.85650299,140.67,140.64,1.776]
[1641728621435,28.85650299,140.67,140.65,3.53219995]
[1641728623366,4.02773919,140.69,140.65,3.53219995]
[1641728624364,31.59022005,140.68,140.65,3.53219995]
[1641728624563,4.02773919,140.69,140.65,3.53219995]
[1641728624564,8.05163594,140.7,140.65,14.20089995]
[1641728625565,39.9096792,140.7,140.65,14.20089995]
[1641728626365,39.9096792,140.7,140.66,0.25]
[1641728626668,31.85804326,140.7,140.66,10.9174]
[1641728628964,31.85804326,140.7,140.66,10.6674]
[1641728632571,31.85804326,140.7,140.66,17.3034]
[1641728633269,31.85804326,140.7,140.66,6.636]
[1641728633670,31.85804326,140.7,140.66,8.412]
[1641728633870,31.85804326,140.7,140.66,1.776]
[1641728634272,31.85804326,140.7,140.64,1.776]
[1641728634471,31.85804326,140.7,140.64,2.026]
[1641728634870,35.88578245,140.7,140.66,10.6679]
[1641728635275,35.88578245,140.7,140.64,2.026]
[1641728636381,35.88578245,140.7,140.64,1.776]
[1641728637085,46.55528245,140.7,140.64,1.776]
[1641728637486,11.492465,140.69,140.64,1.776]
[1641728637686,1.776,140.68,140.56,24.3906]
[1641728637888,26.0778,140.68,140.57,0.25]
[1641728638086,32.35383477,140.68,140.57,0.25]
[1641728638285,32.35383477,140.68,140.56,24.3906]
[1641728638486,34.13466063,140.68,140.57,1.777]
[1641728638686,1.776,140.67,140.57,1.777]
[1641728638988,9.82803477,140.67,140.57,1.777]
[1641728639186,11.60886063,140.67,140.55,1.776]
[1641728639690,10.6754,140.63,140.57,10.6748]
[1641728639885,30.60414009,140.62,140.57,10.6748]
[1641728640088,30.85414009,140.62,140.55,1.776]
[1641728640687,30.85414009,140.62,140.56,10.6755]
[1641728640887,30.85414009,140.62,140.57,1.778]
[1641728641088,41.52974009,140.62,140.57,1.778]
[1641728645016,41.52974009,140.62,140.56,12.4537]
[1641728645217,5.80573919,140.64,140.57,0.25]
[1641728645517,5.80573919,140.64,140.58,1.778]
[1641728645817,4.02773919,140.66,140.58,1.778]
[1641728646016,4.02773919,140.66,140.59,0.25]
[1641728646216,28.58023943,140.65,140.6,1.776]
[1641728646816,39.25363943,140.65,140.6,1.776]
[1641728648017,28.58023943,140.65,140.6,1.776]
[1641728648820,28.58023943,140.65,140.6,12.4486]
[1641728649420,28.58023943,140.65,140.61,0.25]
[1641728649622,28.58023943,140.65,140.62,1.776]
[1641728650520,4.02773919,140.68,140.63,10.6704]
[1641728650721,25.1474,140.59,140.54,1.777]
[1641728651122,25.1474,140.59,140.48,24.9363]
[1641728651722,25.1474,140.59,140.53,10.6754]
[1641728651922,52.99512337,140.59,140.53,10.6754]
[1641728652724,1.9516485,140.57,140.53,10.6754]
[1641728652923,29.03223837,140.56,140.53,10.6754]
[1641728653123,2.53219997,140.55,140.52,10.6772]
[1641728653324,2.53219997,140.55,140.49,35.5889]
[1641728653325,2.53219997,140.55,140.48,24.9363]
[1641728653523,2.53219997,140.55,140.5,0.25]
[1641728653722,2.53219997,140.55,140.51,1.778]
[1641728654224,2.53219997,140.55,140.52,10.6773]
[1641728654422,2.53219997,140.55,140.53,3.53219995]
[1641728655226,2.53219997,140.55,140.5,1.778]
[1641728655425,2.53219997,140.55,140.51,0.25]
[1641728655625,2.53219997,140.55,140.48,1.778]
[1641728655825,2.53219997,140.55,140.48,2.028]
[1641728656527,2.53219997,140.55,140.5,10.6787]
[1641728658830,2.53219997,140.55,140.48,2.028]
[1641728659034,2.53219997,140.55,140.49,10.6795]
[1641728660033,13.21189997,140.55,140.49,10.6795]
[1641728660632,13.21189997,140.55,140.5,1.778]
[1641728660860,13.21189997,140.55,140.49,1.778]
[1641728663736,14.98989997,140.55,140.47,1.778]
[1641728664035,14.98989997,140.55,140.46,0.33312333]
[1641728664235,39.79339997,140.55,140.46,0.33312333]
[1641728664635,41.74504847,140.55,140.46,0.33312333]
[1641728665439,47.968348,140.54,140.46,0.33312333]
[1641728665637,10.6874,140.5,140.46,0.33312333]
[1641728665837,56.52929023,140.49,140.46,0.33312333]
[1641728666138,25.306631,140.48,140.46,0.33312333]
[1641728666941,39.25,140.47,140.46,0.33312333]
[1641728667941,41.0,140.46,140.4,1.778]
[1641728668140,1.78,140.45,140.4,1.778]
[1641728668941,10.6895,140.43,140.4,1.778]
[1641728669141,2.53219997,140.42,140.38,1.78]
[1641728669345,29.40036639,140.41,140.38,1.78]
[1641728669542,29.40036639,140.41,140.37,1.78]
[1641728669743,29.40036639,140.41,140.37,2.03]
[1641728671944,40.09136639,140.41,140.37,1.78]
[1641728675750,40.09136639,140.41,140.35,1.78]
[1641728675978,40.09136639,140.41,140.35,2.03]
[1641728677079,1.78,140.4,140.35,1.78]
[1641728677281,10.6943,140.38,140.35,1.78]
[1641728677480,2.53219997,140.37,140.35,1.78]
[1641728678082,25.69897151,140.36,140.35,1.78]
[1641728678284,25.69897151,140.36,140.32,1.78]
[1641728679785,35.6425,140.42,140.32,1.78]
[1641728679984,1.78,140.44,140.32,8.529]
[1641728680185,1.78,140.46,140.33,22.514]
[1641728680384,1.78,140.44,140.34,1.78]
[1641728680786,30.7946543,140.43,140.35,0.25]
[1641728680986,30.7946543,140.43,140.36,1.78]
[1641728681890,0.25,140.42,140.36,1.78]
[1641728682086,27.60216317,140.4,140.36,1.78]
[1641728682686,27.60216317,140.4,140.36,12.4704]
[1641728684094,50.4535,140.45,140.36,12.4704]
[1641728684293,48.6735,140.45,140.4,10.687]
[1641728684494,73.2184,140.47,140.41,1.78]
[1641728684693,10.6887,140.44,140.38,1.78]
[1641728685094,27.87659224,140.43,140.38,1.78]
[1641728685293,27.87659224,140.43,140.36,1.78]
[1641728685494,27.87659224,140.43,140.36,2.03]
[1641728685696,27.87659224,140.43,140.38,10.6884]
[1641728685993,27.87659224,140.43,140.39,1.78]
[1641728686500,27.87659224,140.43,140.37,1.78]
[1641728687396,27.87659224,140.43,140.38,0.25]
[1641728688297,27.87659224,140.43,140.38,10.6884]
[1641728688499,38.56609224,140.43,140.37,1.78]
[1641728689599,38.56609224,140.43,140.37,12.4697]
[1641728689797,27.87659224,140.43,140.37,12.4697]
[1641728690198,27.87659224,140.43,140.37,10.6897]
[1641728691299,27.87659224,140.43,140.38,1.78]
[1641728691498,27.87659224,140.43,140.38,12.4684]
[1641728691699,27.87659224,140.43,140.36,1.78]
[1641728691903,27.87659224,140.43,140.36,2.03]
[1641728692100,38.56599224,140.43,140.36,2.03]
[1641728692301,27.87659224,140.43,140.36,2.03]
[1641728692504,27.87659224,140.43,140.38,10.6889]
[1641728692903,27.87659224,140.43,140.36,2.03]
[1641728693211,38.56599224,140.43,140.36,2.03]
[1641728693806,27.87659224,140.43,140.39,10.6882]
[1641728694005,3.7316485,140.45,140.39,10.6882]
[1641728695037,29.74241234,140.44,140.39,10.6882]
[1641728695237,31.69406084,140.44,140.39,10.6882]
[1641728695638,31.69406084,140.44,140.39,12.4682]
[1641728696040,29.74241234,140.44,140.39,12.4682]
[1641728698040,31.69406084,140.44,140.39,12.4682]
[1641728698449,1.78,140.43,140.39,12.4682]
[1641728699441,1.78,140.43,140.39,1.78]
[1641728699642,1.9516485,140.41,140.35,1.78]
[1641728699942,29.33464283,140.4,140.34,59.3206]
[1641728700141,29.33464283,140.4,140.35,1.78]
[1641728700342,29.33464283,140.4,140.33,0.25]
[1641728700543,29.33464283,140.4,140.34,1.78]
[1641728700744,29.33464283,140.4,140.33,0.25]
[1641728701445,0.25,140.39,140.33,0.25]
[1641728701647,0.25,140.39,140.34,1.78]
[1641728701844,0.25,140.39,140.35,10.6912]
[1641728702343,0.25,140.39,140.33,1.78]
[1641728702946,10.9422,140.39,140.34,10.692]
[1641728704144,10.9422,140.39,140.33,12.4728]
[1641728705349,12.7222,140.39,140.32,10.6936]
[1641728707152,10.9422,140.39,140.32,10.6936]
[1641728707353,0.25,140.39,140.32,10.6936]
[1641728708354,0.25,140.39,140.33,1.78]
[1641728708556,0.25,140.39,140.36,10.6902]
[1641728708954,2.53219997,140.38,140.36,10.6902]
[1641728709157,22.52058131,140.37,140.36,10.6902]
[1641728709357,22.52058131,140.37,140.29,1.78]
[1641728709562,22.52058131,140.37,140.3,35.6401]
[1641728709756,22.52058131,140.37,140.31,1.78]
[1641728710557,22.52058131,140.37,140.32,10.6931]
[1641728711157,22.52058131,140.37,140.33,1.78]
[1641728711459,22.52058131,140.37,140.32,1.78]
[1641728711661,22.52058131,140.37,140.35,10.6909]
[1641728711859,25.05278128,140.37,140.35,10.6909]
[1641728712060,2.53219997,140.37,140.35,10.6909]
[1641728712359,2.53219997,140.37,140.35,14.22309995]
[1641728712758,2.53219997,140.37,140.35,3.53219995]
[1641728713158,27.9124616,140.37,140.32,1.78]
[1641728714861,38.6063616,140.37,140.32,12.4736]
[1641728715061,27.9124616,140.37,140.32,12.4736]
[1641728717766,38.6062616,140.37,140.32,12.4736]
[1641728717966,38.6062616,140.37,140.32,1.78]
[1641728721068,40.3862616,140.37,140.32,1.78]
[1641728721468,40.3862616,140.37,140.28,1.78]
[1641728721668,10.6977,140.32,140.28,1.78]
[1641728721872,10.6977,140.32,140.27,1.78]
[1641728722069,10.6977,140.32,140.27,2.03]
[1641728722570,24.43035743,140.31,140.27,2.03]
[1641728722769,24.43035743,140.31,140.27,12.7275]
[1641728726172,35.12855743,140.31,140.27,1.78]
[1641728726374,35.12855743,140.31,140.26,10.6984]
[1641728726572,35.12855743,140.31,140.25,1.782]
[1641728727373,35.12855743,140.31,140.25,12.4811]
[1641728730578,35.12855743,140.31,140.25,1.782]
[1641728730778,10.6998,140.29,140.24,10.7998]
[1641728731180,29.31046381,140.28,140.24,10.7998]
[1641728732688,1.782,140.31,140.26,10.6963]
[1641728732886,1.782,140.35,140.27,2.032]
[1641728733086,1.78,140.38,140.27,1.782]
[1641728733286,35.2729,140.36,140.28,0.25]
[1641728733488,33.4929,140.36,140.29,1.78]
[1641728733687,24.58160547,140.33,140.29,1.78]
[1641728734790,24.58160547,140.33,140.31,10.6941]
[1641728735789,24.58160547,140.33,140.32,0.5]
[1641728736008,27.11380544,140.33,140.31,13.72629995]
[1641728737912,0.0045,140.36,140.34,3.73573526]
[1641728738112,185.26879272,140.48,140.39,14.87489193]
[1641728738312,185.26879272,140.48,140.39,22.26889193]
[1641728738612,75.9468,140.57,140.43,0.32333343]
[1641728738812,23.80364569,140.58,140.43,7.672]
[1641728739012,26.7338113,140.53,140.47,35.5931]
[1641728739313,26.7338113,140.53,140.48,10.678]
[1641728740614,26.7338113,140.53,140.46,10.6819]
[1641728741614,0.25,140.52,140.46,10.6819]
[1641728742214,26.7338113,140.53,140.46,10.6819]
[1641728743623,0.25,140.52,140.46,10.6819]
[1641728746126,0.25,140.52,140.47,1.778]
[1641728747327,0.25,140.52,140.46,10.6819]
[1641728751840,0.25,140.52,140.45,10.6835]
[1641728752039,0.25,140.52,140.46,1.778]
[1641728755368,0.25,140.52,140.45,10.9335]
[1641728756669,0.25,140.52,140.45,10.6835]
[1641728757072,0.25,140.52,140.44,1.778]
[1641728758271,0.25,140.52,140.44,10.6843]
[1641728758674,26.7338113,140.53,140.44,10.6843]
[1641728758875,26.7338113,140.53,140.45,1.778]
[1641728759772,146.391614,140.52,140.34,3.73573526]
[1641728759974,63.585452,140.51,140.35,1.778]
[1641728760172,15.4296685,140.51,140.34,3.73573526]
[1641728760581,16.14639133,140.5,140.34,3.73573526]
[1641728760774,10.6953,140.42,140.34,3.73573526]
[1641728760981,35.6501,140.45,140.34,3.73573526]
[1641728760982,28.96875181,140.41,140.34,3.73573526]
[1641728761376,28.96875181,140.41,140.34,14.42773526]
[1641728761574,68.92025524,140.49,140.34,14.42773526]
[1641728761575,1.78,140.48,140.35,1.78]
[1641728762378,0.25,140.47,140.36,0.25]
[1641728762580,25.66132427,140.47,140.37,1.78]
[1641728762779,25.66132427,140.47,140.39,10.6883]
[1641728762979,25.66132427,140.47,140.36,1.78]
[1641728763180,1.78,140.46,140.36,1.78]
[1641728763384,1.78,140.46,140.35,1.78]
[1641728763583,1.78,140.46,140.35,2.03]
[1641728763784,75.4224,140.46,140.35,2.03]
[1641728763984,75.4224,140.46,140.35,1.78]
[1641728765085,1.78082586,140.45,140.35,1.78]
[1641728765290,1.78,140.44,140.34,3.73573526]
[1641728765487,30.62469561,140.44,140.34,3.73573526]
[1641728765685,1.78082586,140.43,140.34,3.73573526]
[1641728765915,30.06909945,140.41,140.34,3.73573526]
[1641728766086,1.78,140.4,140.34,3.73573526]
[1641728766389,3.56082586,140.4,140.34,3.73573526]
[1641728766789,29.408371,140.39,140.34,3.73573526]
[1641728766988,31.98798671,140.37,140.34,3.73573526]